bitfinex-derivatives/quotes_BTCF0:USTF0_20250919
["timestamp","ask_amount","ask_price","bid_price","bid_amount"]
[1758253968435,0.83563,116990.0,116980.0,1.26846628]
[1758253968737,1.08680314,116990.0,116980.0,1.26846628]
[1758253969436,1.08680314,116990.0,116980.0,0.39612]
[1758253969733,1.08680314,116990.0,116980.0,1.27846628]
[1758253970830,0.27252314,116990.0,116980.0,0.86612]
[1758253971038,0.81412,116990.0,116980.0,2.06250626]
[1758253971534,0.25166532,117000.0,116980.0,2.06250626]
[1758253971722,0.81412,116990.0,116980.0,1.81143312]
[1758253971925,0.81412,116990.0,116980.0,2.17213312]
[1758253972134,0.81412,116990.0,116980.0,2.42213312]
[1758253972338,0.02250218,117000.0,116990.0,0.03594]
[1758253972533,0.83644218,117000.0,116990.0,1.29674]
[1758253972839,1.08761532,117000.0,116990.0,1.79908628]
[1758253973739,1.08861532,117000.0,116990.0,1.26908628]
[1758253973940,1.09061532,117000.0,116990.0,1.01791314]
[1758253974242,0.83944218,117000.0,116990.0,1.27791314]
[1758253974433,1.09061532,117000.0,116990.0,1.27791314]
[1758253975734,1.09061532,117000.0,116990.0,1.52908628]
[1758253975930,0.83944218,117000.0,116990.0,1.52908628]
[1758253976137,0.00339218,117000.0,116990.0,1.93556569]
[1758253976327,0.81715218,117000.0,116990.0,2.18556569]
[1758253976534,0.81715218,117000.0,116990.0,2.29299083]
[1758253977133,0.00339218,117000.0,116990.0,2.18556569]
[1758253978441,0.00139218,117000.0,116990.0,2.18556569]
[1758253979137,0.00039218,117000.0,116990.0,2.18556569]
[1758253979644,0.00039218,117000.0,116990.0,2.19430912]
[1758253980338,0.00039218,117000.0,116990.0,1.4407897]
[1758253980639,0.00039218,117000.0,116990.0,2.19430912]
[1758253981644,0.00039218,117000.0,116990.0,1.4407897]
[1758253982334,0.00039218,117000.0,116990.0,1.4417897]
[1758253982743,0.00039218,117000.0,116990.0,2.19530912]
[1758253983244,0.00039218,117000.0,116990.0,2.19630912]
[1758253985439,0.00882536,117000.0,116990.0,2.19630912]
[1758253985646,0.00039218,117000.0,116990.0,2.19630912]
[1758253986246,0.00039218,117000.0,116990.0,1.4427897]
[1758253986547,0.00039218,117000.0,116990.0,2.19630912]
[1758253989349,0.00039218,117000.0,116990.0,2.11087472]
[1758253989551,0.52576846,117000.0,116990.0,0.8473553]
[1758253989741,0.52576846,117000.0,116990.0,0.9073553]
[1758253989946,0.52576846,117000.0,116990.0,1.15852844]
[1758253990145,0.28292528,117000.0,116990.0,1.15852844]
[1758253990348,0.03175214,117000.0,116990.0,1.15852844]
[1758253990552,0.27459532,117000.0,116990.0,1.07991314]
[1758253991041,0.27459532,117000.0,116990.0,1.29991314]
[1758253991247,0.27459532,117000.0,116990.0,1.01991314]
[1758253991447,0.27459532,117000.0,116990.0,1.34108628]
[1758253993454,0.27459532,117000.0,116990.0,1.66652068]
[1758253993650,0.02342218,117000.0,116990.0,1.66652068]
[1758253994040,1.08731532,117000.0,116990.0,1.66652068]
[1758253994245,0.02342218,117000.0,116990.0,1.91769382]
[1758253994445,1.08723532,117000.0,116990.0,1.91769382]
[1758253994645,1.08723532,117000.0,116990.0,1.1641744]
[1758253994845,1.08723532,117000.0,116990.0,1.91769382]
[1758253995451,0.83606218,117000.0,116990.0,2.02525046]
[1758253995844,1.08723532,117000.0,116990.0,2.02525046]
[1758253996055,0.02342218,117000.0,116990.0,2.02525046]
[1758253996253,0.96419532,117000.0,116990.0,2.02525046]
[1758253997055,0.71302218,117000.0,116990.0,2.02525046]
[1758253997252,0.96419532,117000.0,116990.0,2.02525046]
[1758253997755,0.71302218,117000.0,116990.0,2.02525046]
[1758253998354,0.71302218,117000.0,116990.0,1.91769382]
[1758253999553,1.08699532,117000.0,116990.0,1.91769382]
[1758253999754,1.08691532,117000.0,116990.0,1.91769382]
[1758254001061,0.83574218,117000.0,116990.0,1.91769382]
[1758254001252,0.02342218,117000.0,116990.0,1.91769382]
[1758254001557,0.83562218,117000.0,116990.0,1.91769382]
[1758254001859,0.81259218,117000.0,116990.0,1.91769382]
[1758254002052,0.81259218,117000.0,116990.0,1.27166607]
[1758254002458,0.81259218,117000.0,116990.0,2.02518549]
[1758254005046,0.81259218,117000.0,116990.0,1.18623167]
[1758254005251,0.81259218,117000.0,116990.0,0.95623167]
[1758254005252,1.31493846,117000.0,116990.0,0.95623167]
[1758254005451,1.33655846,117000.0,116990.0,1.12740481]
[1758254005651,1.33655846,117000.0,116990.0,1.01991314]
[1758254005851,1.08538532,117000.0,116990.0,1.37869734]
[1758254008266,1.08538532,117000.0,116990.0,0.87635106]
[1758254008464,0.83421218,117000.0,116990.0,1.37869734]
[1758254008659,1.08538532,117000.0,116990.0,1.37869734]
[1758254009661,0.83421218,117000.0,116990.0,1.37869734]
[1758254009863,1.08538532,117000.0,116990.0,1.37869734]
[1758254010163,0.83421218,117000.0,116990.0,1.37869734]
[1758254010464,1.08538532,117000.0,116990.0,1.37869734]
[1758254010864,1.08538532,117000.0,116990.0,0.87635106]
[1758254011066,1.08538532,117000.0,116990.0,1.37869734]
[1758254011267,0.02201218,117000.0,116990.0,1.37869734]
[1758254011466,0.92654532,117000.0,116990.0,1.37869734]
[1758254011967,0.92654532,117000.0,116990.0,1.27108628]
[1758254012465,0.92654532,117000.0,116990.0,0.76874]
[1758254012864,0.92654532,117000.0,116990.0,1.01991314]
[1758254013263,1.42771846,117000.0,116990.0,0.76874]
[1758254013463,1.42771846,117000.0,116990.0,1.01991314]
[1758254013766,1.42771846,117000.0,116990.0,0.76874]
[1758254013970,0.92537218,117000.0,116990.0,1.01991314]
[1758254014279,1.58579846,117000.0,116990.0,1.01991314]
[1758254015170,0.77435846,117000.0,116990.0,1.01991314]
[1758254015370,1.58575846,117000.0,116990.0,1.01991314]
[1758254015669,1.58571846,117000.0,116990.0,1.01991314]
[1758254015866,1.33454532,117000.0,116990.0,1.01991314]
[1758254016874,1.33454532,117000.0,116990.0,0.76874]
[1758254017175,0.52318532,117000.0,116990.0,1.01991314]
[1758254017560,1.33442532,117000.0,116990.0,1.01991314]
[1758254017766,1.418076,117000.0,116990.0,1.10356382]
[1758254017966,1.08325218,117000.0,116990.0,1.10356382]
[1758254018166,1.418076,117000.0,116990.0,1.10356382]
[1758254018370,1.418076,117000.0,116990.0,1.33356382]
[1758254018573,0.606836,117000.0,116990.0,1.33356382]
[1758254018875,1.417996,117000.0,116990.0,1.33356382]
[1758254019369,1.167996,117000.0,116990.0,0.99874]
[1758254019570,1.167996,117000.0,116990.0,1.33356382]
[1758254020163,0.02201218,117000.0,116990.0,1.41899812]
[1758254020366,0.81147218,117000.0,116990.0,1.75382194]
[1758254020773,0.00039218,117000.0,116990.0,2.00382194]
[1758254021178,0.00039218,117000.0,116990.0,2.15654608]
[1758254021479,0.00039218,117000.0,116990.0,2.96758608]
[1758254023370,0.00039218,117000.0,116990.0,2.15654608]
[1758254023679,0.00039218,117000.0,116990.0,2.96742608]
[1758254025974,0.00039218,117000.0,116990.0,2.81470194]
[1758254027675,0.00039218,117000.0,116990.0,2.92230978]
[1758254027883,0.00039218,117000.0,116990.0,2.11142978]
[1758254028078,0.00039218,117000.0,116990.0,2.81442194]
[1758254030878,0.00039218,117000.0,116990.0,2.92202297]
[1758254031373,0.00039218,117000.0,116990.0,2.81442194]
[1758254031682,0.00039218,117000.0,116990.0,2.92201582]
[1758254032074,0.00039218,117000.0,116990.0,2.81442194]
[1758254032474,0.00039218,117000.0,116990.0,3.14924576]
[1758254032675,0.0001,117010.0,117000.0,0.1198369]
[1758254032977,0.01997482,117020.0,117010.0,0.1198296]
[1758254033181,0.01987482,117020.0,117010.0,1.88303841]
[1758254033984,0.01987482,117020.0,117010.0,2.21786223]
[1758254034385,0.01987482,117020.0,117010.0,2.11027724]
[1758254034780,0.02187482,117020.0,117010.0,2.11027724]
[1758254035085,0.002,117020.0,117010.0,2.11027724]
[1758254035279,0.4557,117030.0,117010.0,2.11027724]
[1758254035481,0.47689,117030.0,117020.0,1.15026984]
[1758254035786,0.47679,117030.0,117020.0,1.87223733]
[1758254036285,0.47679,117030.0,117020.0,1.82223733]
[1758254036479,0.47679,117030.0,117020.0,0.93258969]
[1758254036879,0.47679,117030.0,117020.0,1.88223733]
[1758254037580,0.4556,117030.0,117020.0,1.96764963]
[1758254037781,0.4556,117030.0,117020.0,1.88223733]
[1758254037986,0.4556,117030.0,117020.0,1.98982232]
[1758254039890,0.81829024,117030.0,117020.0,2.07523262]
[1758254040090,1.82218,117040.0,117030.0,0.1212049]
[1758254040386,2.63188,117040.0,117030.0,1.48900881]
[1758254040987,1.82208,117040.0,117030.0,1.48900881]
[1758254041186,2.63184,117040.0,117030.0,1.48900881]
[1758254041388,2.88184,117040.0,117030.0,1.48900881]
[1758254041790,2.88384,117040.0,117030.0,1.18900881]
[1758254041981,2.88384,117040.0,117030.0,1.44726484]
[1758254042382,0.81176,117040.0,117030.0,1.86749356]
[1758254043089,0.81276,117040.0,117030.0,1.86749356]
[1758254043290,0.81076,117040.0,117030.0,1.86749356]
[1758254043890,0.80976,117040.0,117030.0,1.86849356]
[1758254044091,0.80976,117040.0,117030.0,1.76090857]
[1758254044299,0.80976,117040.0,117030.0,2.57042857]
[1758254044487,0.80976,117040.0,117030.0,2.57142857]
[1758254044894,0.80976,117040.0,117030.0,2.67901356]
[1758254045690,0.80976,117040.0,117030.0,1.86949356]
[1758254046894,0.80976,117040.0,117030.0,1.53466974]
[1758254047296,0.80976,117040.0,117030.0,1.44926484]
[1758254047496,0.80976,117040.0,117030.0,1.53466974]
[1758254048395,0.83152,117040.0,117030.0,1.18444102]
[1758254048698,0.83152,117040.0,117030.0,1.51926484]
[1758254049099,0.83152,117040.0,117030.0,1.25926484]
[1758254049100,1.16634382,117040.0,117030.0,1.25926484]
[1758254049289,1.16634382,117040.0,117030.0,1.15167985]
[1758254049485,0.83152,117040.0,117030.0,1.15167985]
[1758254049689,0.83152,117040.0,117030.0,1.42167985]
[1758254050799,0.83152,117040.0,117030.0,1.41167985]
[1758254052900,0.83152,117040.0,117030.0,0.81685603]
[1758254053204,0.83152,117040.0,117030.0,1.48167985]
[1758254055408,0.83152,117040.0,117030.0,1.14685603]
[1758254055596,0.83152,117040.0,117030.0,1.48167985]
[1758254061313,0.02176,117040.0,117030.0,1.48167985]
[1758254064412,0.02176,117040.0,117030.0,1.58926484]
[1758254064608,0.0002,117050.0,117040.0,0.01353]
[1758254064815,0.83144,117050.0,117040.0,1.21543]
[1758254065014,0.83144,117050.0,117040.0,1.55025382]
[1758254065720,0.83144,117050.0,117040.0,3.05025382]
[1758254066711,0.83144,117050.0,117040.0,3.38507764]
[1758254067818,0.83144,117050.0,117040.0,3.49266263]
[1758254068222,0.83144,117050.0,117040.0,3.53266263]
[1758254068422,0.83144,117050.0,117040.0,3.42507764]
[1758254069521,0.83144,117050.0,117040.0,3.09025382]
[1758254071225,0.83144,117050.0,117040.0,3.42507764]
[1758254072428,0.83144,117050.0,117040.0,3.13507764]
[1758254072626,0.83144,117050.0,117040.0,2.80025382]
[1758254072924,1.16626382,117050.0,117040.0,2.80025382]
[1758254073328,1.16626382,117050.0,117040.0,2.46543]
[1758254073527,1.16626382,117050.0,117040.0,2.80025382]
[1758254075426,0.83144,117050.0,117040.0,2.80025382]
[1758254075616,0.83144,117050.0,117040.0,3.09025382]
[1758254075821,1.16626382,117050.0,117040.0,3.09025382]
[1758254076731,1.16626382,117050.0,117040.0,2.07543]
[1758254077235,1.16626382,117050.0,117040.0,2.41025382]
[1758254077725,1.08234063,117050.0,117040.0,2.57723126]
[1758254077931,1.08234063,117050.0,117040.0,2.58723126]
[1758254078333,0.83144,117050.0,117040.0,2.58723126]
[1758254078532,1.08234063,117050.0,117040.0,2.58723126]
[1758254079229,0.83144,117050.0,117040.0,2.58723126]
[1758254079429,1.08234063,117050.0,117040.0,2.58723126]
[1758254080133,1.84100189,117050.0,117030.0,0.55054102]
[1758254080335,0.78282189,117040.0,117030.0,0.57674102]
[1758254080532,0.78282189,117040.0,117030.0,0.42905603]
[1758254080835,0.78282189,117040.0,117030.0,0.45015603]
[1758254081338,0.78282189,117040.0,117030.0,0.3829]
[1758254081739,0.03012,117040.0,117030.0,0.3829]
[1758254081930,0.78282189,117040.0,117030.0,0.3829]
[1758254082432,1.03282189,117040.0,117030.0,0.3618]
[1758254082640,1.05232827,117040.0,117030.0,0.3628]
[1758254083033,1.85916827,117040.0,117030.0,0.3628]
[1758254083231,1.85916827,117040.0,117030.0,0.3608]
[1758254083532,1.85916827,117040.0,117030.0,0.3618]
[1758254084035,1.05232827,117040.0,117030.0,0.3618]
[1758254084242,1.35826764,117040.0,117030.0,0.3819]
[1758254084435,1.35826764,117040.0,117030.0,0.63280063]
[1758254084839,0.55142764,117040.0,117030.0,0.63280063]
[1758254085138,1.35818764,117040.0,117030.0,0.63280063]
[1758254086341,1.35818764,117040.0,117030.0,0.3819]
[1758254086541,1.35818764,117040.0,117030.0,0.63280063]
[1758254086744,1.35802764,117040.0,117030.0,0.63280063]
[1758254086945,1.60892827,117040.0,117030.0,0.3819]
[1758254087243,0.80232827,117040.0,117030.0,0.3819]
[1758254087444,1.60892827,117040.0,117030.0,0.3819]
[1758254087946,0.85622638,117040.0,117030.0,0.3819]
[1758254088146,1.60892827,117040.0,117030.0,0.3819]
[1758254091339,0.85622638,117040.0,117030.0,0.3819]
[1758254091541,0.04276638,117040.0,117030.0,0.39543]
[1758254091741,1.09994701,117040.0,117030.0,0.39543]
[1758254091946,1.60174827,117040.0,117030.0,0.39543]
[1758254095148,0.79546827,117040.0,117030.0,0.39543]
[1758254095349,1.60150827,117040.0,117030.0,0.39543]
[1758254095543,1.60836827,117040.0,117030.0,0.39543]
[1758254095846,0.80232827,117040.0,117030.0,0.39543]
[1758254096050,0.04276638,117040.0,117030.0,1.74813189]
[1758254096243,0.84876638,117040.0,117030.0,1.74813189]
[1758254096440,0.04276638,117040.0,117030.0,1.74813189]
[1758254096641,0.84872638,117040.0,117030.0,1.74813189]
[1758254097345,0.84864638,117040.0,117030.0,1.74813189]
[1758254098149,0.84864638,117040.0,117030.0,1.49723126]
[1758254098454,0.84864638,117040.0,117030.0,1.74813189]
[1758254098850,1.09954701,117040.0,117030.0,1.49723126]
[1758254099450,1.09954701,117040.0,117030.0,1.14723126]
[1758254100161,1.09954701,117040.0,117030.0,0.64543]
[1758254100456,1.09954701,117040.0,117030.0,1.14723126]
[1758254101371,0.84864638,117040.0,117030.0,1.14723126]
[1758254101561,1.09954701,117040.0,117030.0,1.14723126]
[1758254101970,0.84864638,117040.0,117030.0,1.14723126]
[1758254102169,0.04276638,117040.0,117030.0,1.14723126]
[1758254102466,0.84828638,117040.0,117030.0,1.14723126]
[1758254102670,1.09918701,117040.0,117030.0,1.49723126]
[1758254102870,1.09918701,117040.0,117030.0,0.64543]
[1758254103066,0.01950638,117040.0,117030.0,2.31353629]
[1758254103269,0.82498638,117040.0,117030.0,2.31353629]
[1758254103466,0.82498638,117040.0,117030.0,2.22813189]
[1758254103669,0.82498638,117040.0,117030.0,2.31353629]
[1758254104173,0.82498638,117040.0,117030.0,2.33571688]
[1758254105872,0.82498638,117040.0,117030.0,1.58301499]
[1758254106070,0.82498638,117040.0,117030.0,2.33571688]
[1758254108775,1.07588701,117040.0,117030.0,2.33571688]
[1758254109076,1.07588701,117040.0,117030.0,1.58301499]
[1758254109271,1.07588701,117040.0,117030.0,2.33571688]
[1758254110370,0.84807638,117040.0,117030.0,0.96391562]
[1758254110575,1.09897701,117040.0,117030.0,0.96391562]
[1758254110970,1.09897701,117040.0,117030.0,0.85633063]
[1758254111274,1.09897701,117040.0,117030.0,1.09633063]
[1758254111678,1.09897701,117040.0,117030.0,0.85633063]
[1758254113177,1.34987764,117040.0,117030.0,0.85633063]
[1758254113570,1.09897701,117040.0,117030.0,0.85633063]
[1758254113879,1.09897701,117040.0,117030.0,1.10723126]
[1758254114779,1.09897701,117040.0,117030.0,0.60543]
[1758254115079,1.09821701,117040.0,117030.0,1.10723126]
[1758254115672,1.09821701,117040.0,117030.0,0.60543]
[1758254115869,1.09821701,117040.0,117030.0,0.85633063]
[1758254116181,1.09821701,117040.0,117030.0,1.10723126]
[1758254118384,0.84731638,117040.0,117030.0,1.10723126]
[1758254118684,1.09821701,117040.0,117030.0,1.10723126]
[1758254120186,0.84731638,117040.0,117030.0,1.10723126]
[1758254120684,0.29349701,117040.0,117030.0,1.21481625]
[1758254120884,1.09765701,117040.0,117030.0,1.21481625]
[1758254121886,0.84675638,117040.0,117030.0,1.21481625]
[1758254122185,1.09765701,117040.0,117030.0,1.21481625]
[1758254122787,0.29349701,117040.0,117030.0,1.21481625]
[1758254122987,1.09765701,117040.0,117030.0,1.21481625]
[1758254124186,0.04259638,117040.0,117030.0,1.59481625]
[1758254124383,0.84659638,117040.0,117030.0,1.59481625]
[1758254124588,1.09749701,117040.0,117030.0,1.59481625]
[1758254127189,0.29349701,117040.0,117030.0,1.59481625]
[1758254127385,1.09725701,117040.0,117030.0,1.59481625]
[1758254127690,1.09721701,117040.0,117030.0,1.59481625]
[1758254127889,0.04259638,117040.0,117030.0,2.05571688]
[1758254128090,0.84623638,117040.0,117030.0,2.05571688]
[1758254130384,0.84623638,117040.0,117030.0,1.30301499]
[1758254130583,0.84623638,117040.0,117030.0,1.94813189]
[1758254130884,0.84623638,117040.0,117030.0,2.05570534]
[1758254132091,0.84623638,117040.0,117030.0,1.94813189]
[1758254132589,1.09713701,117040.0,117030.0,1.94813189]
[1758254133194,0.84623638,117040.0,117030.0,1.19543]
[1758254133488,0.84623638,117040.0,117030.0,1.94813189]
[1758254133895,0.84623638,117040.0,117030.0,1.19543]
[1758254134092,0.84623638,117040.0,117030.0,1.94813189]
[1758254136188,1.09713701,117040.0,117030.0,1.94813189]
[1758254139899,0.84623638,117040.0,117030.0,1.52999045]
[1758254140293,0.84623638,117040.0,117030.0,0.98543]
[1758254140597,1.18079683,117040.0,117030.0,0.88623]
[1758254140798,1.18079683,117040.0,117030.0,0.86386922]
[1758254140990,1.43765683,117040.0,117030.0,0.86386922]
[1758254141186,0.62715683,117040.0,117030.0,0.75623]
[1758254141392,1.42983683,117040.0,117030.0,0.75623]
[1758254142405,1.42983683,117040.0,117030.0,1.09079045]
[1758254143700,1.76439728,117040.0,117030.0,0.86386922]
[1758254147206,1.76439728,117040.0,117030.0,0.75623]
[1758254147595,1.42983683,117040.0,117030.0,0.75623]
[1758254148106,1.77125728,117040.0,117030.0,0.3819]
[1758254150306,1.10213638,117040.0,117030.0,0.3819]
[1758254150507,1.77125728,117040.0,117030.0,0.3819]
[1758254153700,1.77053728,117040.0,117030.0,0.3819]
[1758254153901,0.96857728,117040.0,117030.0,0.3819]
[1758254154102,1.77045728,117040.0,117030.0,0.3819]
[1758254154406,1.76359728,117040.0,117030.0,0.39565]
[1758254154605,1.42903683,117040.0,117030.0,0.39565]
[1758254156110,1.76359728,117040.0,117030.0,0.39565]
[1758254156710,1.77045728,117040.0,117030.0,0.3819]
[1758254160212,1.10133638,117040.0,117030.0,0.3819]
[1758254160411,0.29945638,117040.0,117030.0,0.3819]
[1758254160611,1.10101638,117040.0,117030.0,0.3819]
[1758254160811,1.77013728,117040.0,117030.0,0.3819]
[1758254161012,1.77001728,117040.0,117030.0,0.3819]
[1758254162511,1.10089638,117040.0,117030.0,0.3819]
[1758254162712,1.77001728,117040.0,117030.0,0.3819]
[1758254165213,0.96857728,117040.0,117030.0,0.3819]
[1758254165416,1.76969728,117040.0,117030.0,0.3819]
[1758254167616,1.10057638,117040.0,117030.0,0.39514]
[1758254167916,1.43497683,117040.0,117030.0,0.39514]
[1758254168314,1.76953728,117040.0,117030.0,0.39514]
[1758254168817,1.10041638,117040.0,117030.0,0.39514]
[1758254169117,1.76953728,117040.0,117030.0,0.39514]
[1758254170318,0.02856,117030.0,117020.0,0.3609]
[1758254170518,0.02856,117030.0,117020.0,0.05]
[1758254170519,0.6976809,117030.0,117020.0,0.05]
[1758254170716,1.4984409,117030.0,117020.0,0.05]
[1758254171106,0.6976809,117030.0,117020.0,0.05]
[1758254171312,0.6976809,117030.0,117010.0,0.37412]
[1758254171512,1.4914109,117020.0,117010.0,0.6259]
[1758254171711,1.4914109,117020.0,117010.0,0.6258]
[1758254173220,1.49985359,117020.0,117010.0,0.6258]
[1758254174420,1.50684359,117020.0,117010.0,0.6258]
[1758254175120,1.50664359,117020.0,117010.0,0.6258]
[1758254175523,1.17208314,117020.0,117010.0,0.6258]
[1758254176422,1.49961359,117020.0,117010.0,0.6258]
[1758254176922,0.83049269,117020.0,117010.0,0.6258]
[1758254177120,1.49961359,117020.0,117010.0,0.6258]
[1758254178627,0.69913359,117020.0,117010.0,0.6258]
[1758254178826,1.49949359,117020.0,117010.0,0.6258]
[1758254181824,1.50648359,117020.0,117010.0,0.61258]
[1758254182030,1.50628359,117020.0,117010.0,0.61258]
[1758254182929,0.70612359,117020.0,117010.0,0.61258]
[1758254183132,1.50616359,117020.0,117010.0,0.61258]
[1758254183426,0.83704269,117020.0,117010.0,0.61258]
[1758254183625,1.50616359,117020.0,117010.0,0.61258]
[1758254185431,0.70612359,117020.0,117010.0,0.61258]
[1758254185729,1.50596359,117020.0,117010.0,0.61258]
[1758254186032,1.4975209,117020.0,117010.0,0.61258]
[1758254187629,1.4975209,117020.0,117010.0,0.5908]
[1758254187933,1.4975209,117020.0,117010.0,0.23]
[1758254188536,1.81441615,117020.0,117010.0,0.23]
[1758254188729,1.96731615,117020.0,117010.0,0.23]
[1758254190025,1.96831615,117020.0,117010.0,0.23]
[1758254190229,1.97031615,117020.0,117010.0,0.23]
[1758254191231,0.00686,117010.0,117000.0,0.3609]
[1758254191436,0.36432045,117010.0,117000.0,0.5808]
[1758254193037,1.16372045,117010.0,117000.0,0.60326]
[1758254194839,0.36432045,117010.0,117000.0,0.60326]
[1758254195041,1.16372045,117010.0,117000.0,0.60326]
[1758254196343,0.82916,117010.0,117000.0,0.60326]
[1758254196543,1.16372045,117010.0,117000.0,0.60326]
[1758254197745,1.16348045,117010.0,117000.0,0.60326]
[1758254199239,0.36432045,117010.0,117000.0,0.60326]
[1758254199446,1.16344045,117010.0,117000.0,0.60326]
[1758254199745,1.58222275,117010.0,117000.0,0.60326]
[1758254202544,1.58222275,117010.0,117000.0,0.5808]
[1758254203944,1.58222275,117010.0,117000.0,0.22]
[1758254204348,1.60178588,117010.0,117000.0,0.22]
[1758254206145,0.80266588,117010.0,117000.0,0.22]
[1758254206348,1.60122588,117010.0,117000.0,0.22]
[1758254208155,1.60222588,117010.0,117000.0,0.22]
[1758254208948,1.60422588,117010.0,117000.0,0.22]
[1758254209749,0.05232313,117010.0,117000.0,0.22]
[1758254210054,1.60402588,117010.0,117000.0,0.22]
[1758254210247,0.80566588,117010.0,117000.0,0.22]
[1758254210548,1.60398588,117010.0,117000.0,0.22]
[1758254210951,1.60398588,117010.0,116990.0,0.3609]
[1758254211142,0.78310275,117000.0,116990.0,0.62336]
[1758254211346,0.78310275,117000.0,116990.0,0.62326]
[1758254212256,0.79151127,117000.0,116990.0,0.24]
[1758254213455,0.03816852,117000.0,116990.0,0.24]
[1758254213648,0.79151127,117000.0,116990.0,0.24]
[1758254213853,0.79151127,117000.0,116990.0,0.26234]
[1758254214962,0.79151127,117000.0,116990.0,0.24]
[1758254215561,0.79151127,117000.0,116990.0,0.26245]
[1758254221168,0.79151127,117000.0,116990.0,0.24]
[1758254221962,0.03816852,117000.0,116990.0,0.24]
[1758254222163,0.79151127,117000.0,116990.0,0.26245]
[1758254223062,0.79151127,117000.0,116990.0,0.24]
[1758254223469,0.03816852,117000.0,116990.0,0.24]
[1758254223670,0.79151127,117000.0,116990.0,0.24]
[1758254226078,1.58895127,117000.0,116990.0,0.27518]
[1758254226974,0.0229,117000.0,116990.0,0.27518]
[1758254227277,1.57368275,117000.0,116990.0,0.27518]
[1758254229770,1.58922142,117000.0,116990.0,0.24]
[1758254229975,1.58922142,117000.0,116990.0,0.26245]
[1758254240388,1.58922142,117000.0,116990.0,0.14245]
[1758254240686,1.58922142,117000.0,116990.0,0.02245]
[1758254243490,0.83587867,117000.0,116990.0,0.02245]
[1758254243789,1.58922142,117000.0,116990.0,0.02245]
[1758254246989,0.0229,117000.0,116990.0,0.0356]
[1758254247185,0.0229,117000.0,116990.0,1.1486285]
[1758254247494,1.07033425,117000.0,116990.0,1.92974275]
[1758254247690,1.07033425,117000.0,116990.0,0.7164]
[1758254247993,1.07033425,117000.0,116990.0,1.28751425]
[1758254248194,0.81922,117000.0,116990.0,1.28751425]
[1758254248589,1.3214485,117000.0,116990.0,0.6664]
[1758254248795,1.3214485,117000.0,116990.0,1.34751425]
[1758254249988,1.07033425,117000.0,116990.0,1.5986285]
[1758254250298,1.3214485,117000.0,116990.0,1.5986285]
[1758254250594,1.3214485,117000.0,116990.0,1.34751425]
[1758254251295,1.3214485,117000.0,116990.0,0.6964]
[1758254251489,1.3214485,117000.0,116990.0,1.30751425]
[1758254251794,1.07033425,117000.0,116990.0,1.30751425]
[1758254252499,1.07033425,117000.0,116990.0,1.5586285]
[1758254252793,1.82034313,117010.0,116990.0,1.5586285]
[1758254252995,1.84161313,117010.0,117000.0,0.28741425]
[1758254253194,3.13990163,117010.0,117000.0,0.28741425]
[1758254253596,2.63767313,117010.0,117000.0,0.64821425]
[1758254253898,3.13990163,117010.0,117000.0,0.64821425]
[1758254254098,3.13990163,117010.0,117000.0,0.3971]
[1758254254292,3.14190163,117010.0,117000.0,0.64821425]
[1758254255497,3.39401588,117010.0,117000.0,0.3971]
[1758254257100,2.64067313,117010.0,117000.0,0.3971]
[1758254257296,3.39401588,117010.0,117000.0,0.3971]
[1758254257799,2.64067313,117010.0,117000.0,0.3971]
[1758254258110,3.39401588,117010.0,117000.0,0.3971]
[1758254259195,2.64067313,117010.0,117000.0,0.3971]
[1758254259592,3.39401588,117010.0,117000.0,0.3971]
[1758254259897,2.97548468,117010.0,117000.0,0.3971]
[1758254260497,2.17932468,117010.0,117000.0,0.3971]
[1758254260697,2.97524468,117010.0,117000.0,0.73191155]
[1758254260896,2.97524468,117010.0,117000.0,0.3971]
[1758254263805,2.97520468,117010.0,117000.0,0.73191155]
[1758254264111,2.97520468,117010.0,117000.0,0.74051328]
[1758254264606,2.97520468,117010.0,117000.0,1.34051328]
[1758254265003,2.17932468,117010.0,117000.0,1.34051328]
[1758254265404,2.17932468,117010.0,117000.0,1.90075093]
[1758254265405,2.61904313,117010.0,117000.0,1.90075093]
[1758254265702,0.7988,117010.0,117000.0,2.21075093]
[1758254266809,0.7978,117010.0,117000.0,2.21075093]
[1758254267308,0.7978,117010.0,117000.0,2.31839015]
[1758254267500,0.7958,117010.0,117000.0,2.31839015]
[1758254267695,0.7958,117010.0,117000.0,1.64876705]
[1758254267901,0.7958,117010.0,117000.0,2.30090271]
[1758254269007,0.7958,117010.0,117000.0,2.38632891]
[1758254274210,0.7958,117010.0,117000.0,1.46670581]
[1758254274609,0.7958,117010.0,117000.0,2.13632891]
[1758254279112,0.7958,117010.0,117000.0,2.02868969]
[1758254282119,0.7958,117010.0,117000.0,1.35906659]
[1758254282508,0.7958,117010.0,117000.0,2.02868969]
[1758254282707,0.7958,117010.0,117000.0,1.27364039]
[1758254282912,0.7958,117010.0,117000.0,1.94326349]
[1758254284617,0.7958,117010.0,117000.0,2.02868979]
[1758254290118,0.7958,117010.0,117000.0,2.38948979]
[1758254291920,0.7958,117010.0,117000.0,1.71986669]
[1758254292215,0.7958,117010.0,117000.0,2.38948979]
[1758254297225,0.35670155,117020.0,117010.0,0.01318]
[1758254297421,0.81647,117020.0,117010.0,0.73002155]
[1758254297619,1.15128155,117020.0,117010.0,0.73002155]
[1758254298126,1.15128155,117020.0,117010.0,1.07002155]
[1758254298528,1.15228155,117020.0,117010.0,1.07002155]
[1758254298722,1.15228155,117020.0,117010.0,0.39521]
[1758254298923,0.81747,117020.0,117010.0,0.73002155]
[1758254299124,1.15228155,117020.0,117010.0,1.38002155]
[1758254299323,1.15228155,117020.0,117010.0,1.12002155]
[1758254299528,0.81747,117020.0,117010.0,1.12002155]
[1758254300337,0.02479,117020.0,117010.0,1.12002155]
[1758254300528,0.79756,117020.0,117010.0,1.740252]
[1758254301038,0.003,117020.0,117010.0,1.76042976]
[1758254301221,0.61892,117020.0,117010.0,1.86810254]
[1758254301425,0.003,117020.0,117010.0,2.66262254]
[1758254301727,0.0001,117030.0,117020.0,0.1198221]
[1758254301925,0.55854,117040.0,117030.0,0.03441]
[1758254302123,1.84234942,117050.0,117040.0,0.03589]
[1758254302332,2.63672942,117050.0,117040.0,0.73150155]
[1758254303326,2.63672942,117050.0,117040.0,0.73982867]
[1758254303727,2.64572942,117050.0,117040.0,0.74082867]
[1758254304832,1.84224942,117050.0,117040.0,0.73982867]
[1758254305029,1.84424942,117050.0,117040.0,1.46464022]
[1758254305333,2.63960942,117050.0,117040.0,1.53209792]
[1758254306127,2.63960942,117050.0,117040.0,1.14209792]
[1758254306328,2.63960942,117050.0,117040.0,1.52209792]
[1758254306527,2.63760942,117050.0,117040.0,1.52209792]
[1758254307235,2.63660942,117050.0,117040.0,1.60749552]